Cogmind - Beta 9.4 *** ADVENTURER MODE // 2020.03.13 @ 19:37:13 Player: Onizu Result: Destroyed by Y-64 Sentinel with KE Penetrator Performance ------------- Evolutions (3) 1500 Regions Visited (6) 1200 Robots Destroyed (41) 205 Value Destroyed (1576) 1576 Prototype IDs (0) 0 Alien Tech Used (0) 0 Bonus (200) 200 TOTAL SCORE: 4681 Bonus ------- Pacifist 200 Cogmind --------- Core Integrity 0/700 Matter 227/300 Energy 98/100 System Corruption 0% Temperature Cool (52) Movement Core (50) Location -7/Lower Caves Parts ------- > --- POWER (1) -------- (None) > --- PROPULSION (4) --- (None) > --- UTILITY (4) ------ (None) > --- WEAPON (4) ------- (None) > --- INVENTORY (4) ---- Light Nuclear Core Small Storage Unit Peak State ------------ > --- POWER ------------ Improved Deuterium Engine > --- PROPULSION ------- Advanced Treads Advanced Treads Advanced Treads Advanced Treads > --- UTILITY ---------- Small Storage Unit Enhanced Optical Array Kinecellerator Layered Light Armor Plating > --- WEAPON ----------- Arc Projector High-powered Shotgun Heavy Battle Rifle Gauss Cannon > --- INVENTORY -------- Light Nuclear Core Light Nuclear Core Advanced Treads Improved Heat Sink Improved Shield Generator Arc Projector [Rating: 46] Favorites ----------- Power Improved Deuterium Engine Engine Improved Deuterium Engine Power Core Light Nuclear Core Propulsion Advanced Treads Treads Advanced Treads Leg Aluminum Leg Utility Small Storage Unit Device Kinecellerator Storage Small Storage Unit Processor Enhanced Optical Array Protection Layered Light Armor Plating Weapon Gauss Cannon Energy Gun Arc Projector Ballistic Gun High-powered Shotgun Ballistic Cannon Gauss Cannon Launcher Shock Bomb Launcher Build | -11 -10 -9 -8 -7 -7 -7 ------- Run | Scr Mat Mat Mat Fac Low Low Slots Evolved 6 | . . 2 2 2 . . Power . | . . . . . . . Propulsion 2 | . . 1 1 . . . Utility 2 | . . 1 1 . . . Weapon 2 | . . . . 2 . . Parts Attached 50 | 5 1 5 16 6 9 8 Power 9 | . 1 1 2 1 2 2 Engine 3 | . 1 . . 1 1 . Core 6 | . . 1 2 . 1 2 Reactor . | . . . . . . . Propulsion 12 | 2 . . 8 . 1 1 Treads 8 | . . . 6 . 1 1 Leg 4 | 2 . . 2 . . . Wheel . | . . . . . . . Hover . | . . . . . . . Flight . | . . . . . . . Utility 16 | 1 . 3 3 2 4 3 Device 3 | . . . . . 2 1 Storage 2 | 1 . . . . 1 . Processor 3 | . . 1 1 1 . . Hackware . | . . . . . . . Protection 8 | . . 2 2 1 1 2 Artifact . | . . . . . . . Weapon 13 | 2 . 1 3 3 2 2 Energy Gun 3 | . . . 1 . 1 1 Energy Cannon . | . . . . . . . Ballistic Gun 7 | 2 . 1 1 2 1 . Ballistic Cannon 1 | . . . . 1 . . Launcher 2 | . . . 1 . . 1 Special Weapon . | . . . . . . . Impact Weapon . | . . . . . . . Slashing Weapon . | . . . . . . . Piercing Weapon . | . . . . . . . Special Melee Weapon . | . . . . . . . Unidentified Prototypes . | . . . . . . . Parts Lost 20 | . . . 2 1 2 15 Power 2 | . . . . . . 2 Propulsion 5 | . . . . . . 5 Utility 5 | . . . 1 . 1 3 Weapon 8 | . . . 1 1 1 5 Highest Loss Streak 15 | . . . 2 1 1 15 Average Slot Usage (%) 92 | . 84 78 93 94 95 72 Engine 5 | . 13 11 . 4 7 3 Core 2 | . . . 9 2 . 1 Treads 21 | . . . 4 30 30 19 Leg 8 | . 28 22 28 . . . Device 1 | . . . . . 1 11 Storage 8 | . 14 11 9 7 7 7 Processor 7 | . . . 3 11 9 . Protection 9 | . . 12 20 8 7 6 Energy Gun 3 | . . . . 6 3 5 Ballistic Gun 14 | . 28 22 13 6 15 8 Ballistic Cannon 4 | . . . . 5 7 5 Launcher 3 | . . . 3 7 2 . Naked Turns 2 | . . . . . . 2 Heaviest Build 56 | 6 11 18 22 38 56 56 Greatest Support 88 | 20 20 20 88 88 88 88 Greatest Overweight (x) 1 | 1 . . . . . 1 Average Overweight (x) . | . . . . . . . Largest Inventory Capacity 10 | 6 6 6 6 6 10 10 Average Capacity 6 | 5 6 6 6 6 6 9 Most Carried 8 | 5 6 6 6 6 8 8 Average Carried 5 | 3 4 5 4 4 5 6 Final Capacity 10 | 6 6 6 6 6 10 4 Final Carried 8 | 5 6 6 4 5 8 2 Class Distribution -------------------- 53% | Mutant 29% | Tank 15% | Gunner Dominant Class ---------------- Mutant | -10/Materials Mutant | -9/Materials Mutant | -8/Materials Gunner | -7/Factory Tank | -7/Lower Caves Tank | -7/Lower Caves Resources | -11 -10 -9 -8 -7 -7 -7 ----------- Run | Scr Mat Mat Mat Fac Low Low Matter Collected 1367 | 213 . 93 364 148 549 . Remotely . | . . . . . . . Salvage Created 1509 | . . 200 575 205 456 73 Parts 86 | . . 15 30 19 21 1 Haulers Intercepted . | . . . . . . . Recyclers Shooed 1 | . . . 1 . . . Parts Field Recycled . | . . . . . . . Retrieved Matter . | . . . . . . . Parts Self-Destructed 21 | . . . . . 20 1 Prevented 3 | . . . . . 3 . Kills | -11 -10 -9 -8 -7 -7 -7 ------- Run | Scr Mat Mat Mat Fac Low Low Combat Hostiles Destroyed 37 | . . 5 10 3 17 2 Guns 26 | . . 5 10 1 10 . Cannons 9 | . . . . 2 7 . AOE 2 | . . . . . . 2 Classes Destroyed 9 | . . 4 2 2 . 1 Builder 2 | . . . . 2 . . Watcher 2 | . . . 1 1 . . Swarmer 11 | . . 1 . . 10 . Grunt 9 | . . 2 3 . 4 . Brawler 2 | . . 1 1 . . . Duelist 2 | . . . . . . 2 Sentry 9 | . . 1 5 2 1 . Hunter 3 | . . . 1 . 2 . Programmer 1 | . . . . 1 . . Best Kill Streak 7 | . . 3 4 2 7 2 Combat Bots Only 7 | . . 3 4 1 7 2 Max Kills in Single Turn 2 | . . 1 1 2 2 1 Gunslinging . | . . . . . . . Exploded 1 | . . . . . . 1 Melee . | . . . . . . . Uniques/NPCs Destroyed . | . . . . . . . Combat | -11 -10 -9 -8 -7 -7 -7 -------- Run | Scr Mat Mat Mat Fac Low Low Damage Taken 4234 | . . 70 725 172 1495 1772 Core 802 | . . . 93 9 387 313 Absorbed by Shields 62 | . . . . . . 62 Core Remaining (%) 95 | 100 100 100 83 . . . Volleys Fired 126 | . . 8 63 11 36 8 Largest 4 | . . 2 2 4 4 4 Hottest 174 | . . 40 56 174 161 161 Shots Fired 261 | . . 16 115 27 86 17 Gun 201 | . . 16 107 13 53 12 Cannon 45 | . . . . 9 33 3 Launcher 15 | . . . 8 5 . 2 Special . | . . . . . . . Kinetic 231 | . . 16 107 17 82 9 Thermal 5 | . . . . 5 . . Explosive 2 | . . . . . . 2 Electromagnetic 23 | . . . 8 5 4 6 Robot Hit Streak 26 | . . 12 11 26 13 21 Robot Miss Streak 3 | . . 1 3 2 2 1 Penetration Max . | . . . . . . . Secondary Targets . | . . . . . . . Shots Hit Robots 204 | . . 12 89 24 63 16 Core Hits 90 | . . 11 31 10 28 10 Critical Hits 6 | . . 1 . . 5 . Critical Kills 3 | . . 1 . . 2 . Critical Parts Destroyed 3 | . . . . . 3 . Melee Attacks . | . . . . . . . Impact . | . . . . . . . Slashing . | . . . . . . . Piercing . | . . . . . . . Sneak Attacks . | . . . . . . . Combat Hostiles . | . . . . . . . Follow-up Attacks . | . . . . . . . Damage Inflicted 3864 | . . 106 1044 467 1209 1038 Guns 2139 | . . 106 859 198 759 217 Cannons 714 | . . . . 173 450 91 Explosions 988 | . . . 180 79 . 729 Melee . | . . . . . . . Ramming 23 | . . . 5 17 . 1 Kinetic 2710 | . . 106 859 310 1188 247 Thermal 160 | . . . . 61 . 99 Explosive 630 | . . . . . . 630 Electromagnetic 341 | . . . 180 79 21 61 Impact . | . . . . . . . Slashing . | . . . . . . . Piercing . | . . . . . . . Highest Corruption 1 | . . . 1 . . . Average Corruption 1 | . . . 1 . . . Corruption Purged . | . . . . . . . Overload Shots . | . . . . . . . Overflow Damage 39 | . . . 20 . . 19 Projectiles . | . . . . . . . Explosions 39 | . . . 20 . . 19 Melee . | . . . . . . . Knockbacks 5 | . . . . . 4 1 Impact . | . . . . . . . Kinetic 5 | . . . . . 4 1 Secondary . | . . . . . . . Self-Inflicted Damage 146 | . . . 12 19 . 115 Shots 7 | . . . 1 3 . 3 Rammed 2 | . . . . 1 . 1 Targets Rammed 3 | . . . 1 1 . 1 Kicked 1 | . . . 1 . . . Crushed . | . . . . . . . Highest Temperature 590 | . . 9 17 330 590 241 Average Temperature 132 | . . 7 6 128 182 95 Received Heat Transfer 1425 | . . 33 306 66 387 633 Effects 8 | . . . . 1 7 . Shutdowns 2 | . . . . . 2 . Energy Bleed 1 | . . . . . 1 . Interference 1 | . . . . 1 . . Matter Decay 1 | . . . . . 1 . Short Circuit 1 | . . . . . 1 . Damage (core) 2 | . . . . . 2 . Siege Activations . | . . . . . . . Robots Corrupted . | . . . . . . . Combat Hostiles . | . . . . . . . Parts Fried 2 | . . . 2 . . . Impact Corruptions . | . . . . . . . Robots Melted . | . . . . . . . Combat Hostiles . | . . . . . . . Parts Melted . | . . . . . . . Heat Transferred 298 | . . . . 148 . 150 Parts Sabotaged . | . . . . . . . Parts Stolen . | . . . . . . . Parts Stripped . | . . . . . . . Power Chain Reactions 1 | . . . . . . 1 Missiles Intercepted . | . . . . . . . Alert | -11 -10 -9 -8 -7 -7 -7 ------- Run | Scr Mat Mat Mat Fac Low Low Peak Influence 409 | . . 150 409 146 . . Average Influence 123 | . . 100 248 76 . . Maximum Alert Level 2 | . . . 2 . . . Low Security (%) 77 | 100 100 100 28 100 . . Level 1 22 | . . . 69 . . . Level 2 . | . . . 2 . . . Level 3 . | . . . . . . . Level 4 . | . . . . . . . Level 5 . | . . . . . . . High Security . | . . . . . . . Max Security . | . . . . . . . Squads Dispatched 2 | . . . . 1 . 1 Investigation . | . . . . . . . Extermination 1 | . . . . 1 . . Reinforcement . | . . . . . . . Assault 1 | . . . . . . 1 Garrison . | . . . . . . . Intercept . | . . . . . . . Construction Impeded . | . . . . . . . Haulers Reinforced . | . . . . . . . Stealth | -11 -10 -9 -8 -7 -7 -7 --------- Run | Scr Mat Mat Mat Fac Low Low Distress Signals . | . . . . . . . Communications Jammed . | . . . . . . . Distress Signals . | . . . . . . . Times Spotted 55 | . 2 5 13 5 17 13 Peak Tracking Total 12 | . 2 3 5 2 7 12 Tactical Retreats 1 | . . . . . 1 . Traps | -11 -10 -9 -8 -7 -7 -7 ------- Run | Scr Mat Mat Mat Fac Low Low Traps Triggered 2 | . . . 2 . . . Indirectly 2 | . . . 2 . . . Trap Hack Attempts . | . . . . . . . Triggered . | . . . . . . . Disarmed . | . . . . . . . Reprogrammed . | . . . . . . . Reused . | . . . . . . . Traps Extracted . | . . . . . . . Installed . | . . . . . . . Triggered 3 | . . . . . 3 . Machines | -11 -10 -9 -8 -7 -7 -7 ---------- Run | Scr Mat Mat Mat Fac Low Low Machines Disabled . | . . . . . . . Max in Single Turn . | . . . . . . . Machines Sabotaged . | . . . . . . . Garrisons Compromised . | . . . . . . . Overloaded Fab Kills . | . . . . . . . Fab Network Shutdowns . | . . . . . . . Hacking | -11 -10 -9 -8 -7 -7 -7 --------- Run | Scr Mat Mat Mat Fac Low Low Machines Accessed 4 | . 1 1 . . 2 . Terminals 2 | . 1 1 . . . . Fabricators . | . . . . . . . Repair Stations . | . . . . . . . Recycling Units . | . . . . . . . Scanalyzers . | . . . . . . . Garrison Access . | . . . . . . . Total Hacks 7 | . 2 3 . . 2 . Successful 6 | . 2 2 . . 2 . Failed 1 | . . 1 . . . . Catastrophic . | . . . . . . . Database Lockouts . | . . . . . . . Manual . | . . . . . . . Terminals 5 | . 2 3 . . . . Fabricators . | . . . . . . . Repair Stations . | . . . . . . . Recycling Units . | . . . . . . . Scanalyzers . | . . . . . . . Garrison Access . | . . . . . . . Terminal Hacks 6 | . 2 2 . . 2 . Record 4 | . 1 2 . . 1 . Open Door 1 | . . . . . 1 . Zone Layout 1 | . 1 . . . . . Fabricator Hacks . | . . . . . . . Repair Station Hacks . | . . . . . . . Recycling Unit Hacks . | . . . . . . . Scanalyzer . | . . . . . . . Garrison Access Hacks . | . . . . . . . Unauthorized Hacks . | . . . . . . . Terminals . | . . . . . . . Fabricators . | . . . . . . . Repair Stations . | . . . . . . . Recycling Units . | . . . . . . . Scanalyzers . | . . . . . . . Garrison Access . | . . . . . . . Data Cores Recovered . | . . . . . . . Used . | . . . . . . . Hacking Detections . | . . . . . . . Full Trace Events . | . . . . . . . Feedback Events . | . . . . . . . Feedback Blocked . | . . . . . . . Robot Schematics Acquired . | . . . . . . . Robots Built . | . . . . . . . Matter . | . . . . . . . Time . | . . . . . . . Total Robot Build Rating . | . . . . . . . Part Schematics Acquired . | . . . . . . . Parts Built . | . . . . . . . Matter . | . . . . . . . Time . | . . . . . . . Total Part Build Rating . | . . . . . . . Parts Repaired . | . . . . . . . Time . | . . . . . . . Parts Recycled . | . . . . . . . Recycled Matter . | . . . . . . . Retrieved Matter . | . . . . . . . Retrieved Components . | . . . . . . . Parts Scanalyzed . | . . . . . . . Part Schematics Acquired . | . . . . . . . Parts Damaged . | . . . . . . . Bothacking | -11 -10 -9 -8 -7 -7 -7 ------------ Run | Scr Mat Mat Mat Fac Low Low Used RIF Installer . | . . . . . . . Robots Hacked . | . . . . . . . Non-combat . | . . . . . . . Combat . | . . . . . . . Robot Hacks Applied . | . . . . . . . Relay Couplers Released . | . . . . . . . Robots Rewired . | . . . . . . . Allies Hacked . | . . . . . . . Hacks Repelled . | . . . . . . . Allies | -11 -10 -9 -8 -7 -7 -7 -------- Run | Scr Mat Mat Mat Fac Low Low Total Allies . | . . . . . . . Largest Group . | . . . . . . . Highest-Rated Group . | . . . . . . . Highest-Rated Ally . | . . . . . . . Total Orders . | . . . . . . . Ally Attacks . | . . . . . . . Total Damage . | . . . . . . . Kills . | . . . . . . . Allies Corrupted . | . . . . . . . Allies Melted . | . . . . . . . Intel | -11 -10 -9 -8 -7 -7 -7 ------- Run | Scr Mat Mat Mat Fac Low Low Robot Analysis Total . | . . . . . . . Derelict Logs Recovered 1 | . . . . . 1 . Drone Launches . | . . . . . . . Drone Recoveries . | . . . . . . . Exploration | -11 -10 -9 -8 -7 -7 -7 ------------- Run | Scr Mat Mat Mat Fac Low Low Turns Passed 2687 | 56 153 216 446 538 1197 81 Spaces Moved 1617 | 49 126 149 188 339 739 27 Core 29 | 25 . . . . . 4 Treads 1131 | . . . 30 339 739 23 Legs 457 | 24 126 149 158 . . . Wheels . | . . . . . . . Hover . | . . . . . . . Flight . | . . . . . . . Fastest Speed 50 | 50 120 120 120 145 145 50 Average Speed 136 | 88 120 120 123 145 145 131 Slowest Speed 165 | 120 120 120 145 145 145 165 Overloaded Moves . | . . . . . . . Propulsion Burnouts . | . . . . . . . Robots Hopped . | . . . . . . . Cave-ins Triggered . | . . . . . . . Exploration Rate (%) 24 | 4 25 16 20 15 84 4 Regions Visited 6 Branch Regions 2 Pre-discovered Areas . | . . . . . . . Known Exits Taken . | . . . . . . . Unknown Exits Taken 6 | 1 1 1 1 1 1 . Scrap Searched 4 | . . . . . 4 . Spaces Dug . | . . . . . . . Terrain Destroyed 43 | . . . . 3 12 28 Melee . | . . . . . . . Projectile 15 | . . . . 3 12 . AOE 28 | . . . . . . 28 Actions | -11 -10 -9 -8 -7 -7 -7 --------- Run | Scr Mat Mat Mat Fac Low Low Total 1883 | 60 128 174 297 367 797 60 Wait 23 | . . 3 7 . 1 12 Move 1611 | 48 125 148 187 338 738 27 Hop . | . . . . . . . Pick Up 41 | 7 2 4 11 7 9 1 Fast Attach 10 | 3 . 4 2 1 . . Attach 29 | 2 1 . 8 5 6 7 Detach . | . . . . . . . Swap 11 | . . 1 6 . 3 1 Drop 29 | . . 6 12 4 4 3 Fire 126 | . . 8 63 11 36 8 Melee . | . . . . . . . Ram . | . . . . . . . Kick 1 | . . . 1 . . . Crush 2 | . . . . 1 . 1 Escape Stasis . | . . . . . . . Rewire . | . . . . . . . Trap . | . . . . . . . Miscellaneous . | . . . . . . . Route ------- -11/Scrapyard -10/Materials -9/Materials -8/Materials -7/Factory (discovered 2 exits: *Low x2) -7/Lower Caves -7/Lower Caves History --------- Turn | Location | Event 4 | -11/Scrapyard | Discovered new exit (range 15) 57 | -11/Scrapyard | Entered Materials 185 | -10/Materials | Discovered new exit (range 16) 210 | -10/Materials | Entered another Materials area 210 | -9/Materials | Evolved 2 slots: Propulsion x1, Utility x1 316 | -9/Materials | Build established: Mutant 403 | -9/Materials | Discovered new exit (range 16) 426 | -9/Materials | Entered another Materials area 426 | -8/Materials | Evolved 2 slots: Propulsion x1, Utility x1 769 | -8/Materials | Discovered new exit (range 13) 872 | -8/Materials | Entered Factory 872 | -7/Factory | Evolved 2 slots: Weapon x2 1351 | -7/Factory | Discovered new exit (range 9) 1371 | -7/Factory | Build established: Gunner 1407 | -7/Factory | Discovered new exit (range 8) 1410 | -7/Factory | Entered Lower Caves 1724 | -7/Lower Caves | Build established: Mutant 1820 | -7/Lower Caves | Attracted the attention of an 0b10 base 1892 | -7/Lower Caves | Core integrity fell below 50% 1926 | -7/Lower Caves | Destroyed 7 combat bots 2146 | -7/Lower Caves | Build established: Tank 2372 | -7/Lower Caves | Learned Factory machine intel 2587 | -7/Lower Caves | Discovered new exit (range 8) 2607 | -7/Lower Caves | Entered another Lower Caves area 2636 | -7/Lower Caves | Attracted the attention of an 0b10 outpost 2682 | -7/Lower Caves | Core integrity fell below 20% 2688 | -7/Lower Caves | Destroyed by Y-64 Sentinel with KE Penetrator Last Messages --------------- 02670_ Slug penetrates L-41 Fighter. 02670_ L-41 Fighter destroyed. 02673_ Hvy. Missile Launcher destroyed. 02673_ Penetrated by Slug. 02677_ Microactuators fries itself beyond repair. 02677_ Chain reaction triggered in Rnf. Deuterium Engine. 02677_ L-41 Fighter destroyed. 02678_ Penetrated by Slug. 02678_ G-47 Trooper destroyed. 02681_ Slug penetrates Wall. 02683_ Lgt. Nuclear Core destroyed. 02684_ The unstable cave ceiling collapses. 02684_ Penetrated by Slug. 02684_ Adv. Treads destroyed. 02685_ Dropped Imp. Heat Sink. 02686_ Dropped Lrg. Storage Unit. 02686_ Dropped Imp. Medium Armor Plating. 02686_ Arc Projector destroyed. 02687_ The unstable cave ceiling collapses. 02688_ Penetrated by Slug. Map ----- +----------------------------------------------------+ | | | | | | | | | | | | | | | | | | | ?????????????????????????????????????????????????? | | ?????????????????????????????????????????????????? | | ?????????????????????????????????????????????????? | | ?????????????????????????????????????????????????? | | ?????????????????????????????????????????????????? | | ?????????????????????????????????????????????????? | | ?????????????????????????????????????????????????? | | ?????????????????????????????????????????????????? | | ?????????????????????????????????????????????????? | | ?????????????????????????????????????????????????? | | ?????????????????????????????????????????????????? | | ?????????????????????????????????????????????????? | | ?????????????????????????????????????????????????? | | ???????????????????????####??????????????????????? | | ???????????????????????? ###???#########????????? | | ?????????????????######## # #??## ##???????? | | ?????????????????#""""""#@ # ### #???????? | | ?????????????????# # ## # #???????? | | ?????????????????# / # #???????? | | ?????????????????### ## g# #### # ##???????? | | ?????????????????# g b!! ##?## #?????????? | | ?????????????????# Y ! % #### #?????????? | | ?????????????# ## [ ### # #?????????? | | ??????????????# "%" # #?????????? | | ??????????????# " g ######?????????? | | ??????????????# # ## #????????????? | | ??????????????# ## ####### #????????????? | | ???????????? ??### #####??????##????????????? | | ?????????? ???????####?????????????????????????? | | ????????? ??????????????????????????????????????? | | ?????????????????????????????????????????????????? | | ?????????????????????????????????????????????????? | | ?????????????????????????????????????????????????? | | ?????????????????????????????????????????????????? | | ?????????????????????????????????????????????????? | | ?????????????????????????????????????????????????? | | ?????????????????????????????????????????????????? | | ?????????????????????????????????????????????????? | | ?????????????????????????????????????????????????? | | ?????????????????????????????????????????????????? | | ?????????????????????????????????????????????????? | +----------------------------------------------------+ Best States ------------- Heat Dissipation 48 Energy Generation 16 Energy Capacity 290 Matter Stores 300 Matter Capacity 300 Sight Range 22 Terrain Scan Density 85 Armor Coverage 300 Resistance: KI 20 Resistance: TH 20 Resistance: EX 20 Resistance: EM 20 Resistance: I 20 Resistance: S 20 Resistance: P 20 Propulsion Shielding 66 Evasion (%) 50 Targeting Accuracy 6 Recoil Reduction 4 Kinecelleration 30 Offensive Hacking 10 Item Schematics ----------------- None Robot Schematics ------------------ None Fabricated ------------ Nothing Alien Tech Used ----------------- None Achievements -------------- Let's See Who's Tougher Challenges ------------ None Game ------ Seed PointHardenedDiverter Manual? 0 Play Time 00:51:07 Cumulative 21.4 hours Start 2020.03.13 @ 18:33:48 End 2020.03.13 @ 19:37:13 Sessions 1 Manual Loads 0 Difficulty Adventurer Special Mode None Game No. 22 Rogue 20 Adventurer 2 Explorer 0 Win Type - Total 0 Types 0/0/0/0/0/0/0 Lore% 7 Gallery% 20 Achievement% 11 Wizard Run 0 Options --------- ASCII 0 Keyboard 0 Movement Mouse Keybinds 0 Fullscreen 2 Font 18/CogNarrow Map View 76x50 Tactical HUD 1 Map Filters NONE Filters NONE Steam 1 RUN: a97ed2d4-dfb8-44d4-96fb-52caa448d5a4